[Event "5th EKA IIFL Investment 2019"]
[Site "Mumbai"]
[Date "2020.01.02"]
[Round "4.50"]
[White "Laddha, Shubh Jayesh"]
[Black "Deshpande, Aniruddha"]
[Result "1/2-1/2"]
[ECO "C42"]
[WhiteElo "1975"]
[BlackElo "2275"]
[Annotator "ChessBase"]
[PlyCount "363"]
[EventDate "2019.12.30"]
[EventType "swiss"]
[EventCountry "IND"]
[SourceTitle "playchess.com"]
[Source "ChessBase"]
[SourceQuality "1"]
[TimeControl "40/5400+30:1800+30"]

1. e4 e5 {[%emt 0:02:28]} 2. Nf3 {[%emt 0:00:00]} Nf6 {[%emt 0:00:08]} 3. Nxe5 {[%emt 0:00:00]} d6 {[%emt 0:00:10]} 4. Nf3 {[%emt 0:00:00]} Nxe4 {[%emt 0:00:06]} 5. Nc3 {[%emt 0:00:05]} Nxc3 {[%emt 0:00:12]} 6. dxc3 {[%emt 0:00:07]} Be7 {[%emt 0:00:13]} 7. Be3 {[%emt 0:00:13]} Nc6 {[%emt 0:00:19]} 8. Bc1 {[%emt 0:00:47]} Nb8 {[%emt 0:00:41]} 9. Be3 {[%emt 0:00:13]} Nc6 {[%emt 0:00:00]} 10. Bc1 {[%emt 0:00:47]} Nb8 {[%emt 0:01:00]} 11. Be3 {[%emt 0:00:13]} Nc6 12. Qd2 {[%emt 0:02:28]} Be6 {[%emt 0:01:04]} 13. O-O-O {[%emt 0:02:28]} Qd7 {[%emt 0:00:00]} 14. h4 {[%emt 0:03:04]} h6 {[%emt 0:05:58]} 15. a3 {[%emt 0:04:45]} a6 {[%emt 0:00:44]} 16. Nd4 {[%emt 0:03:55]} Bf6 {[%emt 0:10:41]} 17. Nf3 {[%emt 0:00:00]} Be7 {[%emt 0:00:00]} 18. Nd4 {[%emt 0:01:00]} Bf6 {[%emt 0:01:00]} 19. Nf3 {[%emt 0:00:00]} Be7 {[%emt 0:00:00]} 20. Nd4 {[%emt 0:01:00]} Bf6 {[%emt 0:01:00]} 21. Nf3 {[%emt 0:00:00]} Be7 {[%emt 0:00:00]} 22. Nd4 {[%emt 0:01:00]} Bf6 {[%emt 0:00:00]} 23. Nf3 {[%emt 0:00:00]} Be7 {[%emt 0:00:00]} 24. Nd4 {[%emt 0:01:00]} Bf6 {[%emt 0:00:00]} 25. Nf3 {[%emt 0:00:00]} Be7 {[%emt 0:00:00]} 26. Nd4 {[%emt 0:01:00]} Bf6 {[%emt 0:03:00]} 27. Be2 {[%emt 0:08:08]} Be7 {[%emt 0:00:00]} 28. Bf1 {[%emt 0:00:00]} Bf6 {[%emt 0:01:00]} 29. Be2 {[%emt 0:00:00]} Be7 {[%emt 0:00:00]} 30. Bf1 {[%emt 0:00:00]} Bf6 {[%emt 0:01:00]} 31. Be2 {[%emt 0:02:00]} O-O-O {[%emt 0:08:07]} 32. Nxc6 {[%emt 0:00:00]} Qxc6 {[%emt 0:00:00]} 33. Bf1 {[%emt 0:00:00]} Qd7 {[%emt 0:01:00]} 34. Be2 {[%emt 0:11:29]} Qc6 {[%emt 0:00:00]} 35. Bf1 {[%emt 0:00:00]} Qd7 {[%emt 0:01:00]} 36. Be2 {[%emt 0:01:00]} Qc6 {[%emt 0:00:00]} 37. Bf1 {[%emt 0:00:00]} Qd7 {[%emt 0:01:00]} 38. Be2 {[%emt 0:01:00]} Qc6 {[%emt 0:00:00]} 39. Bf1 {[%emt 0:00:00]} Qd7 {[%emt 0:01:00]} 40. Be2 {[%emt 0:01:00]} Qc6 {[%emt 0:01:10]} 41. Bf1 {[%emt 0:12:53]} Qd7 {[%emt 0:29:50]} 42. Be2 {[%emt 0:18:07]} Qc6 {[%emt 0:01:10]} 43. Bf3 {[%emt 0:06:00]} Qd7 {[%emt 0:00:00]} 44. Be2 {[%emt 0:00:00]} Qc6 {[%emt 0:01:00]} 45. Bf3 {[%emt 0:01:00]} Qd7 {[%emt 0:00:00]} 46. Be2 {[%emt 0:00:00]} Qc6 {[%emt 0:01:00]} 47. Bf3 {[%emt 0:01:00]} Qc4 {[%emt 0:03:02]} 48. Be2 {[%emt 0:00:00]} Qc6 {[%emt 0:00:00]} 49. Bf3 {[%emt 0:01:00]} Qc4 50. Bd5 {[%emt 0:00:44]} Bxd5 {[%emt 0:01:07]} 51. Qxd5 {[%emt 0:00:05]} Qxd5 {[%emt 0:00:07]} 52. Rxd5 {[%emt 0:00:07]} Rhe8 {[%emt 0:01:23]} 53. Rdd1 {[%emt 0:00:53]} Rh8 {[%emt 0:00:33]} 54. Rd5 {[%emt 0:00:07]} Rhe8 {[%emt 0:00:00]} 55. Rdd1 {[%emt 0:00:53]} Rh8 {[%emt 0:01:00]} 56. Rd5 {[%emt 0:00:07]} Rhe8 {[%emt 0:00:00]} 57. Rdd1 {[%emt 0:00:53]} Rh8 {[%emt 0:01:00]} 58. Rd5 {[%emt 0:00:07]} Rhe8 {[%emt 0:00:00]} 59. Rdd1 {[%emt 0:00:53]} Rh8 {[%emt 0:01:00]} 60. Rd5 {[%emt 0:00:07]} Rhe8 {[%emt 0:00:00]} 61. Rdd1 {[%emt 0:00:53]} Rh8 {[%emt 0:01:00]} 62. Rd5 {[%emt 0:00:07]} Rhe8 {[%emt 0:00:00]} 63. Rdd1 {[%emt 0:00:53]} Rh8 {[%emt 0:01:00]} 64. Rd5 {[%emt 0:00:07]} Rhe8 {[%emt 0:00:00]} 65. Rdd1 {[%emt 0:00:53]} Rh8 {[%emt 0:01:00]} 66. Rd5 {[%emt 0:00:07]} Rhe8 {[%emt 0:00:27]} 67. Rdd1 {[%emt 0:00:53]} Rh8 {[%emt 0:00:33]} 68. Rd5 {[%emt 0:00:07]} Rhe8 {[%emt 0:00:27]} 69. Rdd1 {[%emt 0:00:53]} Rh8 {[%emt 0:00:33]} 70. Rd5 {[%emt 0:00:07]} Rhe8 {[%emt 0:00:27]} 71. Rdd1 {[%emt 0:00:53]} Rh8 {[%emt 0:00:33]} 72. Rd5 {[%emt 0:00:07]} Rhe8 {[%emt 0:00:00]} 73. Bd4 {[%emt 0:12:08]} Rh8 {[%emt 0:00:04]} 74. Be3 {[%emt 0:00:00]} Rhe8 {[%emt 0:03:47]} 75. Bd4 {[%emt 0:01:00]} Be5 {[%emt 0:00:25]} 76. Be3 {[%emt 0:00:00]} Bf6 {[%emt 0:00:35]} 77. Bd4 {[%emt 0:01:00]} Be5 {[%emt 0:00:25]} 78. Be3 {[%emt 0:00:00]} Bf6 {[%emt 0:00:35]} 79. Bd4 {[%emt 0:01:00]} Be5 {[%emt 0:00:25]} 80. Be3 {[%emt 0:00:00]} Bf6 {[%emt 0:00:35]} 81. Bd4 {[%emt 0:01:00]} Be5 {[%emt 0:00:00]} 82. Be3 {[%emt 0:00:00]} Bf6 {[%emt 0:01:00]} 83. Bd4 {[%emt 0:01:00]} Be5 {[%emt 0:00:25]} 84. Bxe5 {[%emt 0:04:06]} dxe5 {[%emt 0:00:55]} 85. Rd3 {[%emt 0:02:02]} Rd6 {[%emt 0:04:42]} 86. Rd5 {[%emt 0:00:00]} Rdd8 {[%emt 0:00:00]} 87. Rd3 {[%emt 0:01:00]} Rd6 {[%emt 0:01:00]} 88. Rd5 {[%emt 0:00:00]} Rdd8 {[%emt 0:00:00]} 89. Rd3 {[%emt 0:01:00]} Rd6 {[%emt 0:01:00]} 90. Re1 {[%emt 0:03:25]} Kd7 {[%emt 0:03:00]} 91. g3 {[%emt 0:04:04]} Re7 {[%emt 0:00:00]} 92. Kd2 {[%emt 0:01:25]} Re8 {[%emt 0:01:00]} 93. Kc1 {[%emt 0:00:00]} Re7 {[%emt 0:04:33]} 94. Kd2 {[%emt 0:01:00]} Re8 {[%emt 0:00:00]} 95. Kc1 {[%emt 0:00:00]} Re7 {[%emt 0:01:00]} 96. Kd2 {[%emt 0:01:00]} Re8 {[%emt 0:00:00]} 97. Kc1 {[%emt 0:00:00]} Re7 {[%emt 0:01:00]} 98. Kd2 {[%emt 0:01:00]} f5 {[%emt 0:05:08]} 99. f3 {[%emt 0:10:28]} e4 {[%emt 0:05:44]} 100. fxe4 fxe4 {[%emt 0:00:52]} 101. Rxd6+ {[%emt 0:00:29]} Kxd6 {[%emt 0:00:11]} 102. Rf1 {[%emt 0:02:18]} Kd7 {[%emt 0:00:30]} 103. Re1 {[%emt 0:00:00]} Kd6 {[%emt 0:00:30]} 104. Rf1 {[%emt 0:00:00]} Kd7 {[%emt 0:00:30]} 105. Re1 {[%emt 0:00:21]} Kd6 {[%emt 0:00:30]} 106. Rf1 {[%emt 0:00:00]} Kd7 {[%emt 0:00:30]} 107. Re1 {[%emt 0:01:00]} Kd6 {[%emt 0:00:30]} 108. Rf1 {[%emt 0:01:39]} Kd7 {[%emt 0:00:30]} 109. Re1 {[%emt 0:00:00]} Kd6 {[%emt 0:00:30]} 110. Rf1 {[%emt 0:00:00]} Kd7 {[%emt 0:00:30]} 111. Re1 {[%emt 0:00:21]} Kd6 {[%emt 0:00:30]} 112. Rf1 {[%emt 0:00:00]} Re6 {[%emt 0:07:09]} 113. Re1 {[%emt 0:00:21]} Re7 {[%emt 0:00:00]} 114. Rf1 {[%emt 0:03:03]} Re6 {[%emt 0:01:00]} 115. Re1 {[%emt 0:00:00]} Re7 {[%emt 0:00:00]} 116. Rf1 {[%emt 0:01:00]} Re6 {[%emt 0:01:00]} 117. Re1 {[%emt 0:00:00]} Re7 {[%emt 0:00:00]} 118. Rf1 {[%emt 0:01:00]} Re6 {[%emt 0:01:00]} 119. Re1 {[%emt 0:00:00]} Re7 {[%emt 0:00:00]} 120. Rf1 {[%emt 0:01:00]} Re6 {[%emt 0:01:00]} 121. Rf4 {[%emt 0:02:40]} Re7 {[%emt 0:00:00]} 122. Rf1 {[%emt 0:00:00]} Re6 {[%emt 0:01:00]} 123. Rf4 {[%emt 0:00:00]} Re7 {[%emt 0:00:00]} 124. Rf1 {[%emt 0:00:00]} Re6 {[%emt 0:01:00]} 125. Rf4 {[%emt 0:00:00]} Re7 {[%emt 0:00:00]} 126. Rf1 {[%emt 0:00:20]} Re6 {[%emt 0:01:00]} 127. Rf4 {[%emt 0:00:00]} Re7 {[%emt 0:00:00]} 128. Rf1 {[%emt 0:01:00]} Re6 {[%emt 0:01:00]} 129. Rf4 {[%emt 0:00:00]} Re7 {[%emt 0:00:00]} 130. Rf1 {[%emt 0:01:00]} Re6 {[%emt 0:01:00]} 131. Rf4 {[%emt 0:00:00]} Re7 {[%emt 0:00:00]} 132. Rf1 {[%emt 0:01:00]} Re6 {[%emt 0:01:00]} 133. Rf4 {[%emt 0:00:00]} Re7 {[%emt 0:00:00]} 134. Rf1 {[%emt 0:01:00]} Re6 {[%emt 0:01:00]} 135. Rf4 {[%emt 0:00:00]} Re7 {[%emt 0:00:00]} 136. Rf1 {[%emt 0:01:00]} Re6 {[%emt 0:01:00]} 137. Rf4 {[%emt 0:02:40]} h5 {[%emt 0:07:28]} 138. g4 hxg4 {[%emt 0:17:59]} 139. Rxg4 {[%emt 0:02:58]} Rf6 {[%emt 0:00:17]} 140. Rf4 {[%emt 0:00:54]} Re6 141. Rg4 {[%emt 0:00:06]} Rf6 {[%emt 0:01:00]} 142. Rf4 {[%emt 0:00:54]} Re6 {[%emt 0:00:30]} 143. Rg4 {[%emt 0:00:06]} Rf6 {[%emt 0:00:30]} 144. Rf4 {[%emt 0:00:54]} Re6 {[%emt 0:00:30]} 145. Rg4 {[%emt 0:00:06]} Rf6 {[%emt 0:00:30]} 146. Rxe4 {[%emt 0:01:41]} Rf2+ {[%emt 0:00:09]} 147. Kd3 {[%emt 0:00:47]} Rh2 {[%emt 0:00:14]} 148. Rg4 {[%emt 0:00:07]} Rf2 {[%emt 0:00:46]} 149. Re4 {[%emt 0:00:53]} Rh2 {[%emt 0:00:14]} 150. Rg4 {[%emt 0:00:07]} b6 {[%emt 0:02:30]} 151. Rxg7 {[%emt 0:03:31]} Rh3+ {[%emt 0:00:00] Rg4 Rh2 Rg7 Rh3+ Rg4 Rh2 Rg7 Rh3+} 152. Kc4 {[%emt 0:02:28]} Rxh4+ {[%emt 0:00:42]} 153. Kb3 {[%emt 0:00:03]} Rf4 {[%emt 0:00:00] Kc4 Rh4+ Kb3 Rf4} 154. Rg2 {[%emt 0:01:24]} a5 155. Ka2 {[%emt 0:00:26]} Rf3 {[%emt 0:01:39]} 156. Kb3 {[%emt 0:00:34]} Rf4 {[%emt 0:00:30]} 157. Ka2 {[%emt 0:00:26]} Rf3 {[%emt 0:00:30]} 158. c4 Rf4 {[%emt 0:00:00]} 159. b3 {[%emt 0:00:00]} Kc6 {[%emt 0:00:00]} 160. Kb2 {[%emt 0:00:00]} Rh4 {[%emt 0:00:00]} 161. Ka2 {[%emt 0:00:00]} Rf4 {[%emt 0:00:00]} 162. Kb2 {[%emt 0:00:00]} Rh4 {[%emt 0:00:00]} 163. Rg6+ {[%emt 0:00:00] Rf4 Rg2 Rh4 Rg6+ Rf4 Rg2 Rh4 Rg6+} Kb7 {[%emt 0:00:00]} 164. a4 {[%emt 0:00:00]} Rf4 {[%emt 0:00:00]} 165. Rg5 {[%emt 0:00:00]} Kc6 {[%emt 0:00:00]} 166. Rg6+ {[%emt 0:00:00]} Kb7 {[%emt 0:00:00]} 167. Rg5 {[%emt 0:00:00]} Kc6 {[%emt 0:00:00]} 168. Rg6+ {[%emt 0:00:00]} Kb7 {[%emt 0:00:00]} 169. Rg5 {[%emt 0:00:00]} c5 {[%emt 0:00:00]} 170. Rg6 {[%emt 0:00:00]} Rf3 {[%emt 0:00:00]} 171. Rg5 {[%emt 0:00:00]} Rf4 {[%emt 0:00:00]} 172. Rg6 {[%emt 0:00:00]} Rf3 {[%emt 0:00:00]} 173. Kc1 {[%emt 0:00:00]} Rf2 {[%emt 0:00:00]} 174. Kb2 {[%emt 0:00:00]} Rf3 {[%emt 0:00:00]} 175. Kc1 {[%emt 0:00:00]} Rf2 176. Kb2 {[%emt 0:00:00]} Rh2 {[%emt 0:00:00]} 177. Rg3 {[%emt 0:00:00]} Rf2 {[%emt 0:00:00]} 178. Rg6 {[%emt 0:00:00]} Rh2 {[%emt 0:00:00]} 179. Rg3 {[%emt 0:00:00]} Kc6 {[%emt 0:00:00]} 180. Kc3 {[%emt 0:00:00]} Kd6 {[%emt 0:00:00]} 181. Kd3 {[%emt 0:00:00]} Kc6 {[%emt 0:00:00]} 182. Rg6+ {[%emt 0:00:00]} 1/2-1/2

[Event "5th EKA IIFL Investment 2019"]
[Site "Mumbai"]
[Date "2020.01.02"]
[Round "4.52"]
[White "Rakshitta Ravi"]
[Black "Tiwari, Arjun"]
[Result "0-1"]
[ECO "A04"]
[WhiteElo "2260"]
[BlackElo "2101"]
[Annotator "ChessBase"]
[PlyCount "204"]
[EventDate "2019.12.30"]
[EventType "swiss"]
[EventCountry "IND"]
[SourceTitle "playchess.com"]
[Source "ChessBase"]
[SourceQuality "1"]
[TimeControl "40/5400+30:1800+30"]

1. Nf3 {[%emt 0:00:00]} f5 {[%emt 0:00:00]} 2. d3 {[%emt 0:00:09]} Nf6 {[%emt 0:01:47]} 3. e4 {[%emt 0:00:28]} d6 {[%emt 0:02:51]} 4. exf5 {[%emt 0:00:21]} Bxf5 {[%emt 0:00:09]} 5. d4 {[%emt 0:00:10]} Nc6 {[%emt 0:05:47]} 6. Bd3 {[%emt 0:01:51]} Qd7 {[%emt 0:00:00]} 7. Bxf5 {[%emt 0:02:25]} Qxf5 {[%emt 0:01:47]} 8. O-O {[%emt 0:00:34]} O-O-O {[%emt 0:00:40]} 9. Re1 {[%emt 0:03:50]} e5 {[%emt 0:00:40]} 10. d5 {[%emt 0:06:30]} Nb4 {[%emt 0:16:42]} 11. c4 {[%emt 0:01:15]} g5 {[%emt 0:00:19]} 12. Re2 {[%emt 0:08:15]} Rg8 {[%emt 0:05:57]} 13. Re1 {[%emt 0:00:00]} Rh8 {[%emt 0:00:00]} 14. Re2 {[%emt 0:01:00]} Rg8 {[%emt 0:00:00]} 15. Re1 {[%emt 0:00:00]} Rh8 {[%emt 0:00:00]} 16. Re2 {[%emt 0:01:00]} Rg8 {[%emt 0:00:00]} 17. Re1 {[%emt 0:00:00]} Rh8 {[%emt 0:00:00]} 18. Re2 {[%emt 0:01:00]} Rg8 {[%emt 0:03:00]} 19. Re1 {[%emt 0:00:00]} Rh8 {[%emt 0:00:00]} 20. Re2 {[%emt 0:01:00]} Rg8 {[%emt 0:01:00]} 21. Re1 {[%emt 0:00:00]} Rh8 {[%emt 0:00:00]} 22. Re2 {[%emt 0:01:00]} Rg8 {[%emt 0:01:00]} 23. Qa4 {[%emt 0:04:53]} Rh8 {[%emt 0:00:00]} 24. Qd1 {[%emt 0:00:00]} Rg8 {[%emt 0:01:00]} 25. Qa4 {[%emt 0:01:00]} Rh8 {[%emt 0:00:00]} 26. Qd1 {[%emt 0:00:00]} Rg8 {[%emt 0:01:00]} 27. Qa4 {[%emt 0:01:00]} Rh8 {[%emt 0:00:00]} 28. Qd1 {[%emt 0:00:00]} Rg8 {[%emt 0:01:00]} 29. Qa4 {[%emt 0:01:00]} Rh8 {[%emt 0:00:00]} 30. Qd1 {[%emt 0:00:00]} Rg8 {[%emt 0:01:00]} 31. Qa4 {[%emt 0:01:00]} Rh8 {[%emt 0:00:00]} 32. Qd1 {[%emt 0:00:00]} Rg8 {[%emt 0:01:00]} 33. Qa4 {[%emt 0:01:00]} Nd3 {[%emt 0:07:54]} 34. Qd1 {[%emt 0:00:00]} Nb4 {[%emt 0:00:00]} 35. Qa4 {[%emt 0:01:00]} Nd3 {[%emt 0:01:00]} 36. Qd1 {[%emt 0:00:00]} Nb4 {[%emt 0:00:00]} 37. Qa4 {[%emt 0:01:00]} Nd3 {[%emt 0:01:00]} 38. Qd1 {[%emt 0:00:00]} Nb4 {[%emt 0:00:00]} 39. Qa4 {[%emt 0:01:00]} Nd3 {[%emt 0:01:00]} 40. Qd1 {[%emt 0:00:00]} Nb4 {[%emt 0:00:00]} 41. Qa4 {[%emt 0:31:00]} Nd3 {[%emt 0:31:00]} 42. Be3 {[%emt 0:04:53]} Nb4 {[%emt 0:00:00]} 43. Bc1 {[%emt 0:00:00]} Nd3 {[%emt 0:01:00]} 44. Be3 {[%emt 0:01:00]} Nf4 {[%emt 0:01:20]} 45. Bc1 {[%emt 0:00:00]} Nd3 {[%emt 0:00:00]} 46. Be3 {[%emt 0:01:00]} Nf4 {[%emt 0:01:00]} 47. Bc1 {[%emt 0:00:00]} Nd3 {[%emt 0:00:00]} 48. Be3 {[%emt 0:01:00]} Nf4 {[%emt 0:01:00]} 49. Bc1 {[%emt 0:00:00]} Nd3 {[%emt 0:00:00]} 50. Be3 {[%emt 0:01:00]} Nf4 {[%emt 0:01:00]} 51. Bc1 {[%emt 0:00:00]} Nd3 {[%emt 0:00:00]} 52. Be3 {[%emt 0:01:00]} Nf4 {[%emt 0:01:00]} 53. Bc1 {[%emt 0:00:00]} Nd3 {[%emt 0:00:00]} 54. Be3 {[%emt 0:01:00]} Nf4 {[%emt 0:01:00]} 55. Bc1 {[%emt 0:00:00]} Nd3 {[%emt 0:00:00]} 56. Be3 {[%emt 0:01:00]} Nf4 {[%emt 0:01:00]} 57. Bc1 {[%emt 0:00:00]} Nd3 {[%emt 0:00:00]} 58. Be3 {[%emt 0:01:00]} Nf4 {[%emt 0:01:00]} 59. Bc1 {[%emt 0:00:00]} Nd3 {[%emt 0:00:00]} 60. Be3 {[%emt 0:01:00]} Nf4 {[%emt 0:00:00]} 61. Bc1 {[%emt 0:00:00]} Nd3 {[%emt 0:00:40]} 62. Be3 {[%emt 0:01:00]} Nf4 {[%emt 0:00:00]} 63. Bc1 {[%emt 0:00:00]} Nd3 {[%emt 0:01:00]} 64. Be3 {[%emt 0:01:00]} Nf4 {[%emt 0:00:00]} 65. Bc1 {[%emt 0:00:00]} Nd3 {[%emt 0:01:00]} 66. Be3 {[%emt 0:01:00]} Nf4 {[%emt 0:01:20]} 67. Bc1 {[%emt 0:00:00]} Nd3 {[%emt 0:00:00]} 68. Be3 {[%emt 0:01:00]} Nf4 {[%emt 0:01:00]} 69. Bxf4 {[%emt 0:21:55]} gxf4 {[%emt 0:00:46]} 70. Nc3 {[%emt 0:08:32]} Rxg2+ {[%emt 0:07:22]} 71. Kxg2 {[%emt 0:00:52]} Qg4+ {[%emt 0:00:02]} 72. Kf1 {[%emt 0:00:07]} Qxf3 {[%emt 0:00:00]} 73. Ke1 {[%emt 0:12:26]} Qg4 {[%emt 0:01:00]} 74. Kf1 {[%emt 0:00:00]} Qf3 {[%emt 0:00:00]} 75. Ke1 {[%emt 0:01:00]} Qg4 {[%emt 0:01:00]} 76. Kf1 {[%emt 0:00:00]} Qf3 {[%emt 0:00:00]} 77. Ke1 {[%emt 0:01:00]} Qg4 {[%emt 0:01:00]} 78. Kf1 {[%emt 0:00:00]} Qf3 {[%emt 0:00:00]} 79. Ke1 {[%emt 0:01:00]} Qg4 {[%emt 0:01:00]} 80. Kf1 {[%emt 0:00:00]} Qf3 81. Ke1 {[%emt 0:01:00]} Qh1+ {[%emt 0:03:51]} 82. Kd2 {[%emt 0:00:06]} Qxa1 {[%emt 0:00:05]} 83. Kc2 {[%emt 0:00:00]} Qh1 {[%emt 0:00:55]} 84. Kd2 {[%emt 0:00:33]} Qa1 {[%emt 0:00:05]} 85. Kc2 {[%emt 0:00:00]} Qh1 {[%emt 0:00:55]} 86. Kd2 {[%emt 0:01:00]} Qa1 {[%emt 0:00:05]} 87. Kc2 {[%emt 0:00:21]} Qf1 {[%emt 0:03:45]} 88. Qxa7 {[%emt 0:00:30]} f3 {[%emt 0:02:19]} 89. Rd2 {[%emt 0:06:58]} Qxc4 {[%emt 0:01:23]} 90. Qa8+ {[%emt 0:00:25]} Kd7 {[%emt 0:00:07]} 91. Qxb7 {[%emt 0:00:08]} Bh6 {[%emt 0:01:04]} 92. Rd1 {[%emt 0:00:23]} Bf8 93. Rd2 {[%emt 0:00:37]} Bh6 {[%emt 0:01:00]} 94. Rd1 {[%emt 0:00:23]} Qc5 {[%emt 0:00:22]} 95. Rd2 {[%emt 0:00:37]} Qc4 {[%emt 0:00:38]} 96. Rd1 {[%emt 0:00:23]} Qc5 {[%emt 0:00:22]} 97. Rd2 {[%emt 0:00:37]} Qc4 {[%emt 0:00:38]} 98. Rd1 {[%emt 0:00:23]} Qc5 {[%emt 0:00:22]} 99. Rd2 {[%emt 0:00:37]} Qc4 {[%emt 0:00:38]} 100. Rd1 {[%emt 0:00:23]} Qc5 {[%emt 0:00:22]} 101. Qa6 {[%emt 0:02:54]} Qxf2+ {[%emt 0:00:54]} 102. Kb1 {[%emt 0:00:01]} Rb8 {[%emt 0:00:16] Kc2 Rd8+ Kb1 Rb8} 0-1

[Event "5th EKA IIFL Investment 2019"]
[Site "Mumbai"]
[Date "2020.01.02"]
[Round "4.53"]
[White "Sapaev, Maksad"]
[Black "Jay Kundaliya"]
[Result "1-0"]
[ECO "B92"]
[WhiteElo "2250"]
[BlackElo "2088"]
[Annotator "ChessBase"]
[PlyCount "62"]
[EventDate "2019.12.30"]
[EventType "swiss"]
[EventCountry "IND"]
[SourceTitle "playchess.com"]
[Source "ChessBase"]
[SourceQuality "1"]
[TimeControl "40/5400+30:1800+30"]

1. e4 c5 2. Nf3 d6 3. d4 cxd4 4. Nxd4 Nf6 5. Nc3 a6 6. Be2 e5 7. Nb3 Be7 8. O-O Be6 9. f4 Qc7 10. Nd5 Nxd5 11. exd5 Bc8 12. c4 b6 13. Be3 exf4 14. Bxf4 Nd7 15. Nd4 Ne5 16. Rc1 Bd7 17. Kh1 O-O 18. b4 a5 19. b5 Rae8 20. Kg1 Ra8 21. Kh1 Rae8 22. Kg1 Ra8 23. Kh1 Rae8 24. Nc6 Bf6 25. Bg3 Bc8 26. Rxf6 gxf6 27. Bh4 Kg7 28. Bg3 Kg8 29. Bh4 Kg7 30. Bd3 f5 31. Qh5 Nxd3 1-0

[Event "5th EKA IIFL Investment 2019"]
[Site "Mumbai"]
[Date "2020.01.02"]
[Round "4.54"]
[White "Panesar Vedant"]
[Black "Thipsay, Bagyashree Sathe"]
[Result "1/2-1/2"]
[ECO "E09"]
[WhiteElo "2247"]
[BlackElo "2087"]
[Annotator "ChessBase"]
[PlyCount "80"]
[EventDate "2019.12.30"]
[EventType "swiss"]
[EventCountry "IND"]
[SourceTitle "playchess.com"]
[Source "ChessBase"]
[SourceQuality "1"]
[TimeControl "40/5400+30:1800+30"]

1. d4 d5 2. Nf3 Nf6 3. c4 e6 4. g3 Bb4+ 5. Bd2 Be7 6. Bg2 O-O 7. O-O c6 8. Qc2 Nbd7 9. Bf4 Nh5 10. Bc1 Nhf6 11. Nbd2 b6 12. e4 Bb7 13. b3 c5 14. exd5 exd5 15. Bb2 dxc4 16. Nxc4 cxd4 17. Nxd4 Bxg2 18. Kxg2 Rc8 19. Rad1 Qc7 20. Qf5 Qb7+ 21. Qf3 Qxf3+ 22. Kxf3 Rfd8 23. Nf5 Bf8 24. g4 Ne8 25. Bxg7 Rxc4 26. bxc4 Bxg7 27. Kg2 Bf6 28. f4 Ng7 29. Ne3 Kf8 30. Nd5 Be7 31. Nxe7 Kxe7 32. Rfe1+ Kf8 33. f5 f6 34. Re3 Re8 35. Ra3 Ne5 36. Kg3 Re7 37. c5 bxc5 38. Ra6 Ne8 39. Rd8 Kf7 40. Rc8 c4 1/2-1/2

[Event "5th EKA IIFL Investment 2019"]
[Site "Mumbai"]
[Date "2020.01.02"]
[Round "4.55"]
[White "Kumar, Gaurav"]
[Black "Utsab Chatterjee"]
[Result "1/2-1/2"]
[ECO "B94"]
[WhiteElo "2075"]
[BlackElo "2200"]
[Annotator "Suhas,Vivek"]
[PlyCount "78"]
[EventDate "2019.12.30"]
[EventType "swiss"]
[EventCountry "IND"]
[TimeControl "40/5400+30:1800+30"]

{[%evp 0,42,19,31,72,53,86,72,52,68,36,27,68,45,80,26,97,40,37,50,58,60,49,40,-27,-27,21,-7,-1,-14,-14,-11,-11,-14,-15,4,46,56,102,58,58,-19,46,2,3]} 1. e4 c5 2. Nf3 d6 3. d4 cxd4 4. Nxd4 Nf6 5. Nc3 a6 6. Bg5 Nbd7 7. Qe2 b5 8. O-O-O Bb7 9. f4 e5 10. Nf5 Qc7 11. Nd5 Nxd5 12. exd5 h6 13. Bh4 g6 14. fxe5 dxe5 15. d6 Qc5 16. Ne7 Qb4 17. Be1 Qf4+ 18. Kb1 Bxe7 19. dxe7 Rc8 20. g3 Qc4 21. Qd2 Qd4 22. Qxd4 exd4 23. Rg1 Be4 24. Rxd4 Bxc2+ 25. Ka1 Bf5 26. Bc3 Kxe7 27. Bg2 Nc5 28. Re1+ Be6 29. Rf4 Nd3 30. Bf6+ Kf8 31. Bb7 Rb8 32. Bxh8 Nxe1 33. Bxa6 Rb6 34. Bc3 Ng2 35. Rf2 Rxa6 36. Rxg2 Rxa2+ 37. Kb1 Ra4 38. h4 Ke7 39. Rd2 Bc4 1/2-1/2

[Event "5th EKA IIFL Investment 2019"]
[Site "Mumbai"]
[Date "2020.01.02"]
[Round "4.56"]
[White "Praveen Kumar C"]
[Black "Nikhil Magizhnan"]
[Result "0-1"]
[ECO "E06"]
[WhiteElo "2199"]
[BlackElo "2077"]
[Annotator "ChessBase"]
[PlyCount "76"]
[EventDate "2019.12.30"]
[EventType "swiss"]
[EventCountry "IND"]
[SourceTitle "playchess.com"]
[Source "ChessBase"]
[SourceQuality "1"]
[TimeControl "40/5400+30:1800+30"]

1. d4 {[%emt 0:00:00]} Nf6 {[%emt 0:00:00]} 2. c4 {[%emt 0:00:00]} e6 {[%emt 0:00:00]} 3. g3 {[%emt 0:00:03]} d5 {[%emt 0:00:00]} 4. Nf3 {[%emt 0:00:06]} Be7 {[%emt 0:00:02]} 5. Bg2 {[%emt 0:00:07]} O-O {[%emt 0:00:08]} 6. Qc2 {[%emt 0:00:15]} c5 {[%emt 0:03:59]} 7. O-O {[%emt 0:02:39]} Nc6 {[%emt 0:06:34]} 8. dxc5 {[%emt 0:03:08]} d4 {[%emt 0:03:01]} 9. a3 {[%emt 0:05:57]} a5 {[%emt 0:00:44]} 10. Rd1 {[%emt 0:04:32]} Bxc5 {[%emt 0:00:22]} 11. e3 {[%emt 0:01:17]} e5 {[%emt 0:02:53]} 12. Nc3 {[%emt 0:08:19]} Bg4 {[%emt 0:07:58]} 13. e4 {[%emt 0:01:07]} Qe7 {[%emt 0:03:52]} 14. Nd5 {[%emt 0:00:16]} Qd6 {[%emt 0:01:25]} 15. h3 {[%emt 0:05:38]} Bxf3 {[%emt 0:09:24]} 16. Bxf3 {[%emt 0:00:29]} Nxd5 {[%emt 0:07:18]} 17. cxd5 {[%emt 0:00:38]} Ne7 {[%emt 0:00:35]} 18. Qd3 {[%emt 0:09:02]} Kh8 {[%emt 0:01:12]} 19. Bd2 {[%emt 0:01:36]} a4 {[%emt 0:04:55]} 20. Rac1 {[%emt 0:00:30]} b6 {[%emt 0:00:56]} 21. Qb5 {[%emt 0:03:49]} f5 {[%emt 0:07:34]} 22. Bb4 {[%emt 0:02:15]} f4 {[%emt 0:09:06]} 23. Bg2 {[%emt 0:16:17]} Rfc8 {[%emt 0:12:59]} 24. Bxc5 {[%emt 0:04:27]} bxc5 {[%emt 0:00:43]} 25. gxf4 {[%emt 0:00:22]} Ng6 {[%emt 0:01:41]} 26. fxe5 {[%emt 0:05:21]} Qxe5 {[%emt 0:00:33]} 27. d6 {[%emt 0:04:08]} Nf4 {[%emt 0:04:34]} 28. d7 {[%emt 0:10:46]} Rc7 {[%emt 0:00:13]} 29. Rc3 {[%emt 0:00:26]} Rd8 {[%emt 0:02:50]} 30. Rf3 {[%emt 0:00:18]} Rcxd7 {[%emt 0:00:28]} 31. Qxa4 {[%emt 0:00:08]} Qg5 {[%emt 0:00:23]} 32. Rg3 {[%emt 0:00:07]} Ne2+ {[%emt 0:00:15]} 33. Kh2 {[%emt 0:00:01]} Nxg3 {[%emt 0:00:09]} 34. fxg3 {[%emt 0:00:05]} d3 {[%emt 0:00:20]} 35. Qc6 {[%emt 0:00:31]} d2 {[%emt 0:00:23]} 36. a4 {[%emt 0:00:11]} Qh5 {[%emt 0:01:08]} 37. g4 {[%emt 0:00:09]} Qe5+ {[%emt 0:00:16]} 38. Kh1 {[%emt 0:00:03]} Qg3 {[%emt 0:00:16]} 0-1